[Event "Weekend Groninger Combinatie 2019"]
[Site "Groningen"]
[Date "2019.06.02"]
[Round "6.8"]
[White "Duijker, Rick"]
[Black "Seijen, Henk"]
[Result "1/2-1/2"]
[ECO "B06"]
[WhiteElo "2164"]
[BlackElo "1750"]
[Annotator "ChessBase"]
[PlyCount "140"]
[EventDate "2019.05.30"]
[EventType "swiss"]
[EventCountry "NED"]
[SourceTitle "playchess.com"]
[Source "ChessBase"]
[SourceQuality "1"]
[TimeControl "5400+30"]

1. d4 {[%emt 0:10:33]} g6 {[%emt 0:00:00]} 2. e4 {[%emt 0:00:07]} Bg7 {[%emt 0:00:15]} 3. Nc3 {[%emt 0:00:07]} d6 {[%emt 0:00:09]} 4. Be3 {[%emt 0:00:07]} a6 {[%emt 0:00:45]} 5. Qd2 {[%emt 0:00:10]} Nd7 {[%emt 0:00:58]} 6. O-O-O {[%emt 0:00:46]} b5 {[%emt 0:01:05]} 7. f3 {[%emt 0:00:46]} Nb6 {[%emt 0:02:50]} 8. Bd3 {[%emt 0:00:54]} Nf6 {[%emt 0:02:52]} 9. g4 {[%emt 0:06:26]} h5 {[%emt 0:04:07]} 10. g5 {[%emt 0:02:29]} Nfd7 {[%emt 0:02:32]} 11. Nge2 {[%emt 0:14:28]} c5 {[%emt 0:04:02]} 12. dxc5 {[%emt 0:07:18]} dxc5 {[%emt 0:04:56]} 13. Nd5 {[%emt 0:06:51]} O-O {[%emt 0:07:59]} 14. Nxb6 {[%emt 0:08:26]} Qxb6 {[%emt 0:02:40]} 15. f4 {[%emt 0:02:39]} Bb7 {[%emt 0:03:01]} 16. Rhe1 {[%emt 0:03:02]} Rfd8 {[%emt 0:03:47]} 17. e5 {[%emt 0:06:41]} Qe6 {[%emt 0:05:56]} 18. Qa5 {[%emt 0:04:21]} c4 {[%emt 0:04:33]} 19. Nd4 {[%emt 0:02:35]} Qb6 {[%emt 0:06:20]} 20. Qxb6 {[%emt 0:00:07]} Nxb6 {[%emt 0:00:14]} 21. Bf1 {[%emt 0:01:59]} Nd5 {[%emt 0:02:11]} 22. Bd2 {[%emt 0:00:08]} e6 {[%emt 0:00:51]} 23. c3 {[%emt 0:03:46]} Bf8 {[%emt 0:02:28]} 24. Bg2 {[%emt 0:04:18]} Rab8 {[%emt 0:07:48]} 25. Bxd5 {[%emt 0:01:23]} Bxd5 {[%emt 0:04:58]} 26. Be3 {[%emt 0:00:23]} b4 {[%emt 0:02:40]} 27. Ne2 {[%emt 0:01:52]} Be4 {[%emt 0:03:18]} 28. Ba7 {[%emt 0:02:21]} Rbc8 {[%emt 0:01:03]} 29. Bb6 {[%emt 0:01:17]} Rxd1+ {[%emt 0:02:11]} 30. Kxd1 {[%emt 0:00:02]} Bd3 {[%emt 0:00:59]} 31. Ba5 {[%emt 0:01:03]} Bxe2+ {[%emt 0:02:35]} 32. Kxe2 {[%emt 0:00:39]} bxc3 {[%emt 0:00:20]} 33. Bxc3 {[%emt 0:00:08]} Rd8 {[%emt 0:00:41]} 34. Rd1 {[%emt 0:03:27]} Rxd1 {[%emt 0:00:17]} 35. Kxd1 {[%emt 0:00:03]} Bc5 {[%emt 0:00:41]} 36. Ke2 {[%emt 0:00:07]} Kf8 {[%emt 0:00:34]} 37. a3 {[%emt 0:02:29]} Ke8 {[%emt 0:01:22]} 38. Kf3 {[%emt 0:00:34]} Kd7 {[%emt 0:00:32]} 39. Ke4 {[%emt 0:00:12]} Bg1 {[%emt 0:01:24]} 40. h3 {[%emt 0:00:10]} Kc6 {[%emt 0:00:18]} 41. Bd4 {[%emt 0:02:34]} Bh2 {[%emt 0:02:49]} 42. Be3 {[%emt 0:00:23]} Bg3 {[%emt 0:01:29]} 43. a4 {[%emt 0:00:13]} Be1 {[%emt 0:01:54]} 44. Kd4 {[%emt 0:00:09]} c3 {[%emt 0:01:48]} 45. bxc3 {[%emt 0:00:08]} Bg3 {[%emt 0:00:30]} 46. Kd3 {[%emt 0:01:05]} Be1 {[%emt 0:00:55]} 47. c4 {[%emt 0:00:54]} Bb4 {[%emt 0:00:36]} 48. Bd2 {[%emt 0:00:55]} Bc5 {[%emt 0:00:25]} 49. Kc3 {[%emt 0:00:12]} Kb6 {[%emt 0:01:26]} 50. Kc2 {[%emt 0:00:52]} Kc6 {[%emt 0:00:26]} 51. Kd3 {[%emt 0:00:59]} Ba3 {[%emt 0:00:53]} 52. Be3 {[%emt 0:00:29]} Bb4 {[%emt 0:00:27]} 53. Bf2 {[%emt 0:00:27]} Ba3 {[%emt 0:00:14]} 54. Kc2 {[%emt 0:00:48]} Bb4 {[%emt 0:00:16]} 55. Be3 {[%emt 0:00:10]} Ba5 {[%emt 0:00:34]} 56. Kb2 {[%emt 0:00:58]} Be1 {[%emt 0:00:16]} 57. Kb3 {[%emt 0:00:13]} Ba5 {[%emt 0:00:13]} 58. Bc1 {[%emt 0:00:26]} Be1 {[%emt 0:00:27]} 59. Be3 {[%emt 0:00:11]} Ba5 {[%emt 0:00:15]} 60. Kc2 {[%emt 0:00:01]} Be1 {[%emt 0:00:22]} 61. Kd3 {[%emt 0:00:09]} Bb4 {[%emt 0:00:28]} 62. Bd4 {[%emt 0:00:44]} Be1 {[%emt 0:00:27]} 63. Bc3 {[%emt 0:00:23]} Bf2 {[%emt 0:00:15]} 64. Bb4 {[%emt 0:00:13]} Bb6 {[%emt 0:00:38]} 65. Ke4 {[%emt 0:00:32]} Bf2 {[%emt 0:00:13]} 66. Bc3 {[%emt 0:00:46]} Bc5 {[%emt 0:00:12]} 67. Bd4 {[%emt 0:01:50]} Bb4 {[%emt 0:00:18]} 68. Bb2 {[%emt 0:00:58]} Bc5 {[%emt 0:00:29]} 69. Bc3 {[%emt 0:00:19]} Ba3 {[%emt 0:00:17]} 70. Bd4 {[%emt 0:00:51]} Bb4 {[%emt 0:00:15]} 1/2-1/2

[Event "Weekend Groninger Combinatie 2019"]
[Site "Groningen"]
[Date "2019.06.02"]
[Round "6.9"]
[White "Wichtrup, Jan-Louis"]
[Black "Van den Heuvel, Annelies"]
[Result "1-0"]
[ECO "D06"]
[WhiteElo "2110"]
[BlackElo "1656"]
[Annotator "ChessBase"]
[PlyCount "41"]
[EventDate "2019.05.30"]
[EventType "swiss"]
[EventCountry "NED"]
[SourceTitle "playchess.com"]
[Source "ChessBase"]
[SourceQuality "1"]
[TimeControl "5400+30"]

1. d4 {[%emt 0:00:00]} Nf6 {[%emt 0:00:00]} 2. c4 {[%emt 0:00:00]} c5 {[%emt 0:00:00]} 3. Nf3 {[%emt 0:00:00]} cxd4 {[%emt 0:01:02]} 4. Nxd4 {[%emt 0:00:06]} d5 {[%emt 0:06:14]} 5. cxd5 {[%emt 0:01:05]} Nxd5 {[%emt 0:01:51]} 6. g3 {[%emt 0:08:50]} g6 {[%emt 0:02:45]} 7. Nb5 {[%emt 0:07:54]} Qa5+ {[%emt 0:06:07]} 8. N1c3 {[%emt 0:00:49]} Nxc3 {[%emt 0:01:02]} 9. Nxc3 {[%emt 0:00:13]} Bg7 {[%emt 0:01:32]} 10. Bg2 {[%emt 0:00:18]} Bxc3+ {[%emt 0:01:29]} 11. bxc3 {[%emt 0:00:10]} Qxc3+ {[%emt 0:02:51]} 12. Bd2 {[%emt 0:00:09]} Qa3 {[%emt 0:06:10]} 13. O-O {[%emt 0:04:31]} O-O {[%emt 0:01:55]} 14. Bh6 {[%emt 0:01:10]} Re8 {[%emt 0:02:35]} 15. Qd4 {[%emt 0:08:34]} e5 {[%emt 0:03:05]} 16. Qh4 {[%emt 0:01:59]} Nd7 {[%emt 0:05:58]} 17. Rfd1 {[%emt 0:02:53]} Qe7 {[%emt 0:02:42]} 18. Bg5 {[%emt 0:01:42]} Qf8 {[%emt 0:05:10]} 19. Rac1 {[%emt 0:02:30]} Nb6 {[%emt 0:03:05]} 20. Bh6 {[%emt 0:03:13]} Qe7 {[%emt 0:00:41]} 21. Qxe7 {[%emt 0:00:25]} 1-0

[Event "Weekend Groninger Combinatie 2019"]
[Site "Groningen"]
[Date "2019.06.02"]
[Round "6.10"]
[White "Hilwerda, Jonas"]
[Black "De Boer, Rein"]
[Result "1/2-1/2"]
[ECO "D00"]
[WhiteElo "2317"]
[BlackElo "2053"]
[Annotator "ChessBase"]
[PlyCount "37"]
[EventDate "2019.05.30"]
[EventType "swiss"]
[EventCountry "NED"]
[SourceTitle "playchess.com"]
[Source "ChessBase"]
[SourceQuality "1"]
[TimeControl "5400+30"]

1. d4 {[%emt 0:00:00]} d5 {[%emt 0:00:00]} 2. Bf4 {[%emt 0:00:47]} c5 {[%emt 0:00:00]} 3. e3 {[%emt 0:01:00]} Nf6 {[%emt 0:00:07]} 4. c3 {[%emt 0:03:19]} Nc6 {[%emt 0:00:24]} 5. Nd2 {[%emt 0:03:38]} Bf5 {[%emt 0:05:52]} 6. Qb3 {[%emt 0:03:15]} Qd7 {[%emt 0:01:19]} 7. h3 {[%emt 0:02:04]} e6 {[%emt 0:02:35]} 8. Ngf3 {[%emt 0:00:27]} c4 {[%emt 0:01:58]} 9. Qd1 {[%emt 0:03:16]} Bd6 {[%emt 0:06:40]} 10. Bxd6 {[%emt 0:02:03]} Qxd6 {[%emt 0:00:07]} 11. Nh4 {[%emt 0:00:28]} O-O {[%emt 0:02:28]} 12. Nxf5 {[%emt 0:12:10]} exf5 {[%emt 0:00:02]} 13. g3 {[%emt 0:00:11]} Rfe8 {[%emt 0:02:04]} 14. Qf3 {[%emt 0:02:18]} g6 {[%emt 0:01:12]} 15. Be2 {[%emt 0:01:33]} Re7 {[%emt 0:07:25]} 16. Qf4 {[%emt 0:05:03]} Qxf4 {[%emt 0:04:54]} 17. gxf4 {[%emt 0:00:02]} b5 {[%emt 0:11:35]} 18. Kd1 {[%emt 0:06:28]} Rb8 {[%emt 0:01:58]} 19. Bf3 {[%emt 0:08:13]} 1/2-1/2

[Event "Weekend Groninger Combinatie 2019"]
[Site "Groningen"]
[Date "2019.06.02"]
[Round "7.1"]
[White "Zwirs, Nico"]
[Black "Ernst, Sipke"]
[Result "1-0"]
[ECO "C41"]
[WhiteElo "2386"]
[BlackElo "2540"]
[Annotator "ChessBase"]
[PlyCount "77"]
[EventDate "2019.05.30"]
[EventType "swiss"]
[EventCountry "NED"]
[SourceTitle "playchess.com"]
[Source "ChessBase"]
[SourceQuality "1"]
[TimeControl "5400+30"]

1. e4 e5 {[%emt 0:00:00]} 2. Nf3 d6 {[%emt 0:00:30]} 3. d4 exd4 {[%emt 0:00:30]} 4. Nxd4 {[%emt 0:14:58]} Nf6 {[%emt 0:00:30]} 5. Nc3 {[%emt 0:00:30]} Be7 {[%emt 0:00:30]} 6. Bf4 {[%emt 0:00:30]} O-O {[%emt 0:00:30]} 7. Qd2 {[%emt 0:00:30]} a6 {[%emt 0:00:30]} 8. O-O-O {[%emt 0:00:30]} b5 {[%emt 0:00:30]} 9. f3 {[%emt 0:00:30]} c5 {[%emt 0:00:30]} 10. Nf5 {[%emt 0:00:30]} Bxf5 {[%emt 0:00:30]} 11. exf5 {[%emt 0:00:30]} Nc6 {[%emt 0:00:30]} 12. g4 {[%emt 0:00:30]} Nd4 {[%emt 0:12:55]} 13. Be3 {[%emt 0:14:33]} Nxf3 {[%emt 0:02:46]} 14. Qg2 {[%emt 0:00:30]} Ne5 {[%emt 0:00:30]} 15. Be2 {[%emt 0:00:30]} b4 {[%emt 0:00:30]} 16. Na4 {[%emt 0:00:30]} Nfd7 {[%emt 0:00:30]} 17. g5 {[%emt 0:00:30]} Re8 {[%emt 0:00:30]} 18. h4 {[%emt 0:00:30]} Qc7 {[%emt 0:00:30]} 19. Bf4 {[%emt 0:00:30]} Rac8 {[%emt 0:21:01]} 20. Bxa6 {[%emt 0:41:03]} Ra8 {[%emt 0:04:19]} 21. Bb5 {[%emt 0:00:09]} Reb8 {[%emt 0:15:12]} 22. b3 {[%emt 0:01:07]} c4 {[%emt 0:03:09]} 23. f6 {[%emt 0:06:57]} Bf8 {[%emt 0:08:44]} 24. Bxd7 {[%emt 0:00:52]} Nxd7 {[%emt 0:01:38]} 25. fxg7 {[%emt 0:00:05]} Kxg7 {[%emt 0:01:50]} 26. g6 {[%emt 0:03:21]} fxg6 {[%emt 0:02:41]} 27. h5 {[%emt 0:00:06]} cxb3 {[%emt 0:01:55]} 28. axb3 {[%emt 0:04:40]} Rxa4 {[%emt 0:10:13]} 29. bxa4 {[%emt 0:00:00]} Qc3 {[%emt 0:02:10]} 30. Rd3 {[%emt 0:01:47]} Qa1+ {[%emt 0:01:49]} 31. Kd2 {[%emt 0:00:01]} Qf6 {[%emt 0:00:03]} 32. Bg5 {[%emt 0:04:00]} Qe5 {[%emt 0:01:17]} 33. hxg6 {[%emt 0:00:34]} Nc5 {[%emt 0:02:44]} 34. Rxh7+ {[%emt 0:02:23]} Kg8 {[%emt 0:00:03]} 35. Rh8+ {[%emt 0:01:39]} Kg7 {[%emt 0:00:25]} 36. Rh7+ {[%emt 0:00:12]} Kg8 {[%emt 0:00:03]} 37. Qd5+ {[%emt 0:00:26]} Qxd5 {[%emt 0:00:03]} 38. Rxd5 {[%emt 0:00:01]} b3 {[%emt 0:00:06]} 39. Rxc5 {[%emt 0:01:08]} 1-0

[Event "Weekend Groninger Combinatie 2019"]
[Site "Groningen"]
[Date "2019.06.02"]
[Round "7.2"]
[White "Hoeksema, Hendrik Pieter"]
[Black "Maris, Ivo"]
[Result "0-1"]
[ECO "A42"]
[WhiteElo "2349"]
[BlackElo "2386"]
[Annotator "RC"]
[PlyCount "68"]
[EventDate "2019.05.30"]
[EventType "swiss"]
[EventCountry "NED"]
[SourceTitle "playchess.com"]
[Source "ChessBase"]
[SourceQuality "1"]
[TimeControl "5400+30"]

1. d4 {[%emt 0:00:00]} d6 {[%emt 0:00:00]} 2. c4 {[%emt 0:00:23]} e5 {[%emt 0:00:00]} 3. Nc3 {[%emt 0:01:37]} g6 {[%emt 0:00:55]} 4. Nf3 {[%emt 0:02:08]} Bg7 {[%emt 0:00:11]} 5. e4 {[%emt 0:03:30]} Nc6 {[%emt 0:00:14]} 6. d5 {[%emt 0:03:21]} Nd4 {[%emt 0:00:04]} 7. Nxd4 {[%emt 0:11:57]} exd4 {[%emt 0:00:11]} 8. Nb5 {[%emt 0:00:07]} Nf6 {[%emt 0:00:04]} 9. Nxd4 {[%emt 0:01:16]} Nxe4 {[%emt 0:00:45]} 10. Be3 {[%emt 0:00:07]} c5 {[%emt 0:01:35]} 11. Nb3 {[%emt 0:06:59]} Bxb2 {[%emt 0:04:25]} 12. Bd3 {[%emt 0:00:13]} Bc3+ {[%emt 0:17:03]} 13. Kf1 {[%emt 0:00:11]} f5 {[%emt 0:00:14]} 14. Rc1 {[%emt 0:04:37]} Bg7 {[%emt 0:04:01]} 15. Nd2 {[%emt 0:13:23]} Nf6 {[%emt 0:02:42]} 16. h3 {[%emt 0:01:27]} O-O {[%emt 0:00:35]} 17. Nf3 {[%emt 0:02:09]} Kh8 {[%emt 0:07:03]} 18. Qc2 {[%emt 0:01:16]} b5 {[%emt 0:00:46]} 19. cxb5 {[%emt 0:04:32]} Nxd5 {[%emt 0:00:57]} 20. Bg5 {[%emt 0:00:08]} Qc7 {[%emt 0:05:46]} 21. Bd2 {[%emt 0:05:51]} Bb7 {[%emt 0:02:39]} 22. Kg1 {[%emt 0:00:37]} Rae8 {[%emt 0:00:57]} 23. Kh2 {[%emt 0:03:36]} Nf6 {[%emt 0:02:27]} 24. Rhd1 {[%emt 0:00:31]} Nh5 {[%emt 0:16:41]} 25. Kg1 {[%emt 0:01:06]} Bxf3 {[%emt 0:04:06]} 26. gxf3 {[%emt 0:00:52]} Be5 {[%emt 0:00:19]} 27. Qc4 {[%emt 0:04:01]} Qb7 {[%emt 0:02:54]} 28. Bf1 {[%emt 0:02:03]} Qe7 {[%emt 0:06:44]} 29. Re1 {[%emt 0:01:21]} Qf6 {[%emt 0:01:01]} 30. Be3 {[%emt 0:06:13]} g5 {[%emt 0:02:28]} 31. a4 {[%emt 0:02:13]} Rg8 {[%emt 0:00:47]} 32. Bd2 {[%emt 0:02:14]} g4 {[%emt 0:01:21]} 33. fxg4 {[%emt 0:02:30]} fxg4 {[%emt 0:01:22]} 34. hxg4 {[%emt 0:00:19]} Qh4 {[%emt 0:00:37]} 0-1

[Event "Weekend Groninger Combinatie 2019"]
[Site "Groningen"]
[Date "2019.06.02"]
[Round "7.3"]
[White "Colbow, Collin"]
[Black "Wichtrup, Jan-Louis"]
[Result "1/2-1/2"]
[ECO "C77"]
[WhiteElo "2169"]
[BlackElo "2110"]
[Annotator "ChessBase"]
[PlyCount "102"]
[EventDate "2019.05.30"]
[EventType "swiss"]
[EventCountry "NED"]
[SourceTitle "playchess.com"]
[Source "ChessBase"]
[SourceQuality "1"]
[TimeControl "5400+30"]

1. e4 {[%emt 0:02:38]} e5 {[%emt 0:00:00]} 2. Nf3 {[%emt 0:00:05]} Nc6 {[%emt 0:00:00]} 3. Bb5 {[%emt 0:00:05]} a6 {[%emt 0:00:00]} 4. Ba4 {[%emt 0:00:04]} Nf6 {[%emt 0:00:01]} 5. Nc3 {[%emt 0:00:12]} Bd6 {[%emt 0:03:38]} 6. d4 {[%emt 0:07:01]} exd4 {[%emt 0:01:15]} 7. Nxd4 {[%emt 0:00:31]} Nxd4 {[%emt 0:07:11]} 8. Qxd4 {[%emt 0:00:22]} Qe7 {[%emt 0:02:52]} 9. Qd3 {[%emt 0:09:26]} Be5 {[%emt 0:11:57]} 10. f3 {[%emt 0:05:03]} O-O {[%emt 0:02:58]} 11. Bg5 {[%emt 0:07:16]} c6 {[%emt 0:00:36]} 12. O-O-O {[%emt 0:04:11]} Re8 {[%emt 0:08:14]} 13. Rhe1 {[%emt 0:07:33]} h6 {[%emt 0:05:29]} 14. Bh4 {[%emt 0:03:57]} b5 {[%emt 0:05:27]} 15. Bb3 {[%emt 0:00:54]} d6 {[%emt 0:00:17]} 16. Ne2 {[%emt 0:03:57]} g5 {[%emt 0:00:33]} 17. Bf2 {[%emt 0:05:09]} c5 {[%emt 0:01:54]} 18. c4 {[%emt 0:00:55]} Nh5 {[%emt 0:05:39]} 19. g3 {[%emt 0:01:35]} Be6 {[%emt 0:02:14]} 20. Nc3 {[%emt 0:02:44]} Qf6 {[%emt 0:02:07]} 21. Rd2 {[%emt 0:09:15]} Rab8 {[%emt 0:01:27]} 22. Be3 {[%emt 0:10:06]} bxc4 {[%emt 0:04:47]} 23. Bxc4 {[%emt 0:00:39]} Bxc3 {[%emt 0:06:07]} 24. bxc3 {[%emt 0:00:15]} Rb6 {[%emt 0:00:19]} 25. Bxe6 {[%emt 0:05:14]} fxe6 {[%emt 0:00:33]} 26. e5 {[%emt 0:02:15]} Qxe5 {[%emt 0:00:56]} 27. Bf2 {[%emt 0:04:09]} Qf6 {[%emt 0:00:10]} 28. Rde2 {[%emt 0:00:57]} Ng7 {[%emt 0:00:57]} 29. f4 {[%emt 0:00:07]} g4 {[%emt 0:02:53]} 30. Rb2 {[%emt 0:01:30]} Reb8 {[%emt 0:08:59]} 31. Rxb6 {[%emt 0:00:05]} Rxb6 {[%emt 0:00:08]} 32. Re2 {[%emt 0:00:42]} Kf7 {[%emt 0:04:01]} 33. Rb2 {[%emt 0:01:13]} Qd8 {[%emt 0:00:38]} 34. Re2 {[%emt 0:02:10]} Qb8 {[%emt 0:01:39]} 35. Qh7 {[%emt 0:00:39]} Qb7 {[%emt 0:01:34]} 36. Qd3 {[%emt 0:01:05]} Nf5 {[%emt 0:00:34]} 37. Qc2 {[%emt 0:02:00]} h5 {[%emt 0:03:46]} 38. Qd3 {[%emt 0:00:09]} Qc6 {[%emt 0:00:36]} 39. Qc4 {[%emt 0:00:35]} Qd5 {[%emt 0:02:25]} 40. Qxd5 {[%emt 0:00:18]} exd5 {[%emt 0:00:02]} 41. Rd2 {[%emt 0:00:29]} Ke6 {[%emt 0:00:15]} 42. Re2+ {[%emt 0:00:02]} Kd7 {[%emt 0:00:38]} 43. Kc2 {[%emt 0:00:11]} Rb8 {[%emt 0:00:29]} 44. Rd2 {[%emt 0:00:24]} Kc6 {[%emt 0:00:12]} 45. Re2 {[%emt 0:00:17]} Kd7 {[%emt 0:03:26]} 46. Rd2 {[%emt 0:00:10]} Ne7 {[%emt 0:00:08]} 47. Rd1 {[%emt 0:01:13]} Rf8 {[%emt 0:01:56]} 48. Rb1 {[%emt 0:00:55]} Kc6 {[%emt 0:00:06]} 49. Re1 {[%emt 0:00:05]} Kd7 {[%emt 0:01:27]} 50. Rb1 {[%emt 0:00:13]} Kc6 {[%emt 0:00:19]} 51. Re1 {[%emt 0:00:12]} Kd7 {[%emt 0:00:57]} 1/2-1/2

[Event "Weekend Groninger Combinatie 2019"]
[Site "Groningen"]
[Date "2019.06.02"]
[Round "7.4"]
[White "De Boer, Eelke"]
[Black "Duijker, Rick"]
[Result "0-1"]
[ECO "B32"]
[WhiteElo "2333"]
[BlackElo "2164"]
[Annotator "ChessBase"]
[PlyCount "110"]
[EventDate "2019.05.30"]
[EventType "swiss"]
[EventCountry "NED"]
[SourceTitle "playchess.com"]
[Source "ChessBase"]
[SourceQuality "1"]
[TimeControl "5400+30"]

1. e4 {[%emt 0:00:25]} c5 {[%emt 0:00:00]} 2. Nf3 {[%emt 0:00:05]} Nc6 {[%emt 0:00:00]} 3. d4 {[%emt 0:00:07]} cxd4 {[%emt 0:00:00]} 4. Nxd4 {[%emt 0:00:06]} e5 {[%emt 0:00:00]} 5. Nb5 {[%emt 0:00:13]} a6 {[%emt 0:00:00]} 6. Nd6+ {[%emt 0:00:13]} Bxd6 {[%emt 0:00:03]} 7. Qxd6 {[%emt 0:00:08]} Qf6 {[%emt 0:00:05]} 8. Qd1 {[%emt 0:00:18]} Qg6 {[%emt 0:00:14]} 9. Nc3 {[%emt 0:00:26]} d5 {[%emt 0:00:07]} 10. Nxd5 {[%emt 0:02:05]} Qxe4+ {[%emt 0:00:09]} 11. Ne3 {[%emt 0:12:50]} Nf6 {[%emt 0:00:24]} 12. Bd3 {[%emt 0:01:52]} Qb4+ {[%emt 0:00:09]} 13. c3 {[%emt 0:03:01]} Qe7 {[%emt 0:00:08]} 14. O-O {[%emt 0:00:39]} O-O {[%emt 0:00:09]} 15. Bc2 {[%emt 0:14:44]} Be6 {[%emt 0:00:30]} 16. Qf3 {[%emt 0:02:04]} Rad8 {[%emt 0:00:22]} 17. Nf5 {[%emt 0:02:06]} Bxf5 {[%emt 0:00:25]} 18. Qxf5 {[%emt 0:00:10]} Qd7 {[%emt 0:01:51]} 19. Qf3 {[%emt 0:05:27]} Qd5 {[%emt 0:00:32]} 20. Qe2 {[%emt 0:00:19]} e4 {[%emt 0:01:06]} 21. Be3 {[%emt 0:01:28]} Ne5 {[%emt 0:01:03]} 22. Rfd1 {[%emt 0:02:17]} Qc4 {[%emt 0:01:40]} 23. Qxc4 {[%emt 0:05:43]} Nxc4 {[%emt 0:00:11]} 24. Bd4 {[%emt 0:00:20]} b5 {[%emt 0:04:44]} 25. b3 {[%emt 0:12:25]} Na3 {[%emt 0:11:18]} 26. Bxf6 {[%emt 0:01:13]} Rxd1+ {[%emt 0:02:06]} 27. Rxd1 {[%emt 0:14:24]} Nxc2 {[%emt 0:00:37]} 28. Be7 {[%emt 0:04:30]} Rc8 {[%emt 0:01:58]} 29. Kf1 {[%emt 0:00:40]} f5 {[%emt 0:07:04]} 30. Rd8+ {[%emt 0:00:24]} Rxd8 {[%emt 0:02:35]} 31. Bxd8 {[%emt 0:00:06]} b4 {[%emt 0:01:34]} 32. Ba5 {[%emt 0:03:54]} bxc3 {[%emt 0:01:42]} 33. Bxc3 {[%emt 0:00:07]} Na3 {[%emt 0:01:42]} 34. Ke2 {[%emt 0:00:33]} Kf7 {[%emt 0:03:12]} 35. Ke3 {[%emt 0:05:51]} g5 {[%emt 0:10:22]} 36. Kd4 {[%emt 0:01:20]} Nb5+ {[%emt 0:02:12]} 37. Kc4 {[%emt 0:00:06]} f4 {[%emt 0:00:40]} 38. a4 {[%emt 0:01:29]} Nc7 {[%emt 0:05:02]} 39. b4 {[%emt 0:04:04]} Ke6 {[%emt 0:00:48]} 40. Bd4 {[%emt 0:01:13]} g4 {[%emt 0:04:59]} 41. Bc3 {[%emt 0:00:31]} Nd5 {[%emt 0:07:58]} 42. Kd4 {[%emt 0:00:26]} e3 {[%emt 0:01:23]} 43. fxe3 {[%emt 0:00:19]} Nxe3 {[%emt 0:00:15]} 44. Ke4 {[%emt 0:00:48]} Nxg2 {[%emt 0:00:56]} 45. Be5 {[%emt 0:00:17]} f3 {[%emt 0:16:50]} 46. Bg3 {[%emt 0:00:05]} h5 {[%emt 0:00:37]} 47. b5 {[%emt 0:00:48]} axb5 {[%emt 0:00:07]} 48. axb5 {[%emt 0:00:04]} h4 {[%emt 0:00:38]} 49. Bf2 {[%emt 0:00:10]} Kd6 {[%emt 0:02:24]} 50. Kd4 {[%emt 0:01:03]} g3 {[%emt 0:01:04]} 51. hxg3 {[%emt 0:00:37]} h3 {[%emt 0:00:14]} 52. g4 {[%emt 0:00:40]} h2 {[%emt 0:01:32]} 53. Bg3+ {[%emt 0:00:15]} Kd7 {[%emt 0:00:17]} 54. Bxh2 {[%emt 0:00:06]} f2 {[%emt 0:00:07]} 55. b6 {[%emt 0:00:05]} Kc6 {[%emt 0:00:37]} 0-1

[Event "Weekend Groninger Combinatie 2019"]
[Site "Groningen"]
[Date "2019.06.02"]
[Round "7.5"]
[White "De Boer, Rein"]
[Black "Wempe, Joost"]
[Result "0-1"]
[ECO "C06"]
[WhiteElo "2053"]
[BlackElo "2261"]
[Annotator "ChessBase"]
[PlyCount "80"]
[EventDate "2019.05.30"]
[EventType "swiss"]
[EventCountry "NED"]
[SourceTitle "playchess.com"]
[Source "ChessBase"]
[SourceQuality "1"]
[TimeControl "5400+30"]

1. e4 {[%emt 0:00:00]} e6 {[%emt 0:01:37]} 2. d4 {[%emt 0:00:00]} d5 {[%emt 0:00:07]} 3. Nd2 {[%emt 0:00:00]} Nf6 {[%emt 0:00:05]} 4. e5 {[%emt 0:00:00]} Nfd7 {[%emt 0:00:06]} 5. Bd3 {[%emt 0:00:00]} c5 {[%emt 0:00:10]} 6. c3 {[%emt 0:00:00]} Nc6 {[%emt 0:00:04]} 7. Ne2 {[%emt 0:00:24]} cxd4 {[%emt 0:00:09]} 8. cxd4 {[%emt 0:00:06]} f6 {[%emt 0:00:04]} 9. exf6 {[%emt 0:00:07]} Nxf6 {[%emt 0:00:05]} 10. Nf3 {[%emt 0:00:20]} Bd6 {[%emt 0:00:16]} 11. O-O {[%emt 0:00:07]} Qc7 {[%emt 0:00:02]} 12. Bd2 {[%emt 0:01:08]} O-O {[%emt 0:00:09]} 13. Rc1 {[%emt 0:00:52]} Bd7 {[%emt 0:00:58]} 14. Ng3 {[%emt 0:00:52]} Qb6 {[%emt 0:06:15]} 15. Bc3 {[%emt 0:01:58]} Bf4 {[%emt 0:01:41]} 16. Rc2 {[%emt 0:02:47]} Nb4 {[%emt 0:01:19]} 17. Bxb4 {[%emt 0:00:11]} Qxb4 {[%emt 0:00:05]} 18. Ne2 {[%emt 0:00:45]} Bd6 {[%emt 0:01:07]} 19. Nc3 {[%emt 0:02:00]} Rae8 {[%emt 0:10:14]} 20. a3 {[%emt 0:08:34]} Qb6 {[%emt 0:00:53]} 21. Ne5 {[%emt 0:02:13]} Kh8 {[%emt 0:06:43]} 22. Rd2 {[%emt 0:16:16]} Re7 {[%emt 0:21:53]} 23. g3 {[%emt 0:11:49]} Qxd4 {[%emt 0:10:00]} 24. Nxd7 {[%emt 0:02:41]} Nxd7 {[%emt 0:00:06]} 25. Bxh7 {[%emt 0:02:18]} Qf6 {[%emt 0:01:27]} 26. Bb1 {[%emt 0:06:07]} Bc5 {[%emt 0:04:26]} 27. Qc2 {[%emt 0:13:05]} g5 {[%emt 0:04:01]} 28. Qd1 {[%emt 0:04:54]} Ne5 {[%emt 0:01:32]} 29. Kg2 {[%emt 0:06:04]} g4 {[%emt 0:10:22]} 30. Na4 {[%emt 0:02:25]} Nf3 {[%emt 0:01:22]} 31. Nxc5 {[%emt 0:01:17]} Qh6 {[%emt 0:00:10]} 32. h4 {[%emt 0:01:40]} gxh3+ {[%emt 0:00:54]} 33. Kh1 {[%emt 0:00:03]} Qxd2 {[%emt 0:01:05]} 34. Qa4 {[%emt 0:01:32]} Qd4 {[%emt 0:01:43]} 35. b4 {[%emt 0:01:42]} Qg4 {[%emt 0:07:17]} 36. Nd3 {[%emt 0:06:26]} e5 {[%emt 0:01:43]} 37. Qc2 {[%emt 0:03:04]} Qe4 {[%emt 0:03:18]} 38. Qc5 {[%emt 0:03:16]} Ng5+ {[%emt 0:01:27]} 39. f3 {[%emt 0:00:04]} Rxf3 {[%emt 0:00:24]} 40. Nf2 {[%emt 0:02:53]} Qc4 {[%emt 0:00:31]} 0-1